bitfinex-derivatives/quotes_BTCF0:USTF0_20241122
["timestamp","ask_amount","ask_price","bid_price","bid_amount"]
[1732265333486,0.050526,98855.0,98851.0,0.050528]
[1732265333976,0.050526,98854.0,98851.0,0.050528]
[1732265334981,0.050526,98854.0,98851.0,0.051528]
[1732265336088,0.3923,98857.0,98851.0,0.001]
[1732265336284,0.3923,98857.0,98852.0,0.050527]
[1732265336588,0.3923,98857.0,98851.0,0.001]
[1732265336795,0.3923,98857.0,98856.0,0.050525]
[1732265337085,0.3923,98857.0,98852.0,0.050527]
[1732265337290,0.3923,98857.0,98855.0,0.050525]
[1732265338388,0.3608,98857.0,98856.0,0.050525]
[1732265338586,0.3608,98857.0,98852.0,0.001]
[1732265338888,0.3608,98857.0,98855.0,0.001]
[1732265339084,0.3608,98857.0,98855.0,0.051525]
[1732265340881,0.050525,98856.0,98855.0,0.001]
[1732265341286,0.050526,98855.0,98850.0,0.050528]
[1732265341488,0.050526,98855.0,98851.0,0.050527]
[1732265341790,0.050526,98855.0,98852.0,0.050527]
[1732265342591,0.050526,98854.0,98844.0,0.0101]
[1732265342793,0.050526,98854.0,98850.0,0.051528]
[1732265342991,0.050528,98851.0,98850.0,0.001]
[1732265343290,0.050527,98853.0,98850.0,0.001]
[1732265343588,0.3608,98857.0,98850.0,0.001]
[1732265343783,0.050528,98851.0,98850.0,0.001]
[1732265343983,0.050526,98855.0,98850.0,0.001]
[1732265344385,0.050526,98855.0,98841.0,0.3608]
[1732265344386,0.050526,98855.0,98852.0,0.001]
[1732265344583,0.050526,98855.0,98852.0,0.051527]
[1732265344989,0.3608,98857.0,98850.0,0.001]
[1732265345182,0.3608,98857.0,98856.0,0.050525]
[1732265345979,0.3608,98857.0,98852.0,0.051527]
[1732265346186,0.411325,98857.0,98852.0,0.050527]
[1732265346386,0.3608,98857.0,98856.0,0.001]
[1732265346586,0.411325,98857.0,98856.0,0.001]
[1732265347988,0.050525,98856.0,98851.0,0.050527]
[1732265348487,0.3608,98858.0,98842.0,0.0024]
[1732265348689,0.3608,98858.0,98840.0,0.36176]
[1732265348897,0.050526,98855.0,98852.0,0.050527]
[1732265349695,0.3608,98858.0,98854.0,0.050526]
[1732265349993,0.050525,98857.0,98855.0,0.050525]
[1732265350502,0.3608,98858.0,98851.0,0.001]
[1732265351296,0.3608,98858.0,98852.0,0.001]
[1732265351597,0.3608,98858.0,98855.0,0.050525]
[1732265351785,0.411324,98858.0,98855.0,0.050525]
[1732265352792,0.411324,98858.0,98855.0,0.051525]
[1732265356092,0.411324,98858.0,98855.0,0.050525]
[1732265357292,0.050525,98857.0,98855.0,0.050525]
[1732265357495,0.3608,98858.0,98849.0,0.0304]
[1732265357496,0.3608,98858.0,98851.0,0.050528]
[1732265357698,0.3608,98858.0,98849.0,0.0304]
[1732265357897,0.3608,98858.0,98850.0,0.050528]
[1732265358196,0.050526,98855.0,98853.0,0.050526]
[1732265359998,0.050528,98851.0,98849.0,0.0304]
[1732265360194,0.050525,98856.0,98849.0,0.0304]
[1732265360397,0.050525,98856.0,98851.0,0.050528]
[1732265361187,0.050526,98854.0,98853.0,0.001]
[1732265362002,0.3608,98858.0,98851.0,0.001]
[1732265362400,0.3608,98858.0,98854.0,0.050526]
[1732265362996,0.3608,98858.0,98853.0,0.001]
[1732265363191,0.3608,98858.0,98857.0,0.050525]
[1732265363397,0.00151787,98860.0,98859.0,0.050523]
[1732265365191,0.00151787,98860.0,98859.0,0.051523]
[1732265365702,0.00151787,98860.0,98859.0,0.050523]
[1732265366091,0.00151787,98860.0,98859.0,0.051523]
[1732265370404,0.00151787,98860.0,98859.0,0.083123]
[1732265371808,0.0047,98871.0,98870.0,0.050518]
[1732265372007,0.3608,98873.0,98860.0,0.13420357]
[1732265372208,0.3608,98873.0,98872.0,0.050517]
[1732265372601,0.411316,98873.0,98872.0,0.050517]
[1732265373504,0.050519,98869.0,98866.0,0.050519]
[1732265373897,0.3608,98873.0,98860.0,0.001]
[1732265374105,0.08368057,98870.0,98863.0,0.050521]
[1732265374303,0.05052,98866.0,98860.0,0.001]
[1732265374506,0.08368057,98870.0,98860.0,0.001]
[1732265374507,0.08368057,98870.0,98865.0,0.05052]
[1732265374711,0.050517,98871.0,98865.0,0.05052]
[1732265375210,0.050518,98870.0,98865.0,0.05052]
[1732265375720,0.050519,98869.0,98865.0,0.05052]
[1732265376211,0.050519,98868.0,98865.0,0.05152]
[1732265378500,0.3608,98873.0,98865.0,0.001]
[1732265378706,0.050518,98871.0,98866.0,0.05052]
[1732265379016,0.050518,98870.0,98866.0,0.05052]
[1732265381316,0.050518,98870.0,98866.0,0.05152]
[1732265381515,0.3608,98873.0,98866.0,0.05152]
[1732265381714,0.050519,98869.0,98866.0,0.05152]
[1732265381914,0.050519,98868.0,98866.0,0.001]
[1732265382311,0.050519,98867.0,98866.0,0.001]
[1732265383108,0.050517,98872.0,98866.0,0.001]
[1732265383407,0.3608,98873.0,98866.0,0.001]
[1732265383723,0.050518,98871.0,98866.0,0.001]
[1732265383917,0.050518,98870.0,98866.0,0.001]
[1732265384114,0.411317,98873.0,98868.0,0.050519]
[1732265384411,0.411317,98873.0,98866.0,0.001]
[1732265384412,0.3608,98873.0,98871.0,0.050517]
[1732265385619,0.411317,98873.0,98867.0,0.050519]
[1732265385804,0.411317,98873.0,98868.0,0.050519]
[1732265386010,0.411317,98873.0,98871.0,0.001]
[1732265386622,0.050517,98872.0,98871.0,0.001]
[1732265389208,0.3608,98873.0,98871.0,0.001]
[1732265389619,0.411317,98873.0,98871.0,0.001]
[1732265391309,0.411317,98873.0,98870.0,0.050518]
[1732265394418,0.3608,98873.0,98859.0,0.0024]
[1732265394623,0.0047,98881.0,98866.0,0.3608]
[1732265394918,0.0317,98883.0,98881.0,0.050512]
[1732265399818,0.0317,98883.0,98869.0,0.0024]
[1732265400024,0.0317,98883.0,98864.0,0.0315]
[1732265400025,0.0317,98883.0,98880.0,0.050512]
[1732265400215,0.0317,98883.0,98868.0,0.0024]
[1732265400416,0.0317,98883.0,98881.0,0.050512]
[1732265400817,0.082211,98883.0,98879.0,0.050513]
[1732265401017,0.3608,98880.0,98868.0,0.0024]
[1732265401218,0.3608,98880.0,98866.0,0.3756]
[1732265401219,0.08368057,98878.0,98866.0,0.36176]
[1732265401516,0.08368057,98878.0,98877.0,0.050514]
[1732265401710,0.3608,98880.0,98877.0,0.050514]
[1732265401916,0.3608,98880.0,98867.0,0.050519]
[1732265401917,0.3608,98880.0,98879.0,0.050513]
[1732265402924,0.3608,98880.0,98866.0,0.3608]
[1732265403431,0.44448057,98880.0,98877.0,0.050514]
[1732265403724,0.3608,98880.0,98879.0,0.050513]
[1732265416225,0.05051,98885.0,98879.0,0.050513]
[1732265417939,0.0328,98887.0,98870.0,0.08368057]
[1732265418138,0.08368057,98880.0,98876.0,0.050515]
[1732265418332,0.3608,98881.0,98870.0,0.08368057]
[1732265418537,0.3608,98884.0,98877.0,0.050514]
[1732265418730,0.050511,98883.0,98877.0,0.050514]
[1732265419341,0.11648057,98887.0,98869.0,0.050518]
[1732265419636,0.08368057,98880.0,98879.0,0.050513]
[1732265419841,0.083309,98887.0,98879.0,0.050513]
[1732265420035,0.083309,98887.0,98880.0,0.050513]
[1732265420633,0.3608,98885.0,98880.0,0.050513]
[1732265421241,0.3608,98886.0,98870.0,0.08608057]
[1732265421540,0.3608,98886.0,98880.0,0.050512]
[1732265421745,0.3608,98886.0,98881.0,0.050512]
[1732265422436,0.3608,98886.0,98870.0,0.08608057]
[1732265422637,0.08368057,98890.0,98870.0,0.08608057]
[1732265422638,0.08368057,98890.0,98885.0,0.05051]
[1732265422843,0.00151733,98895.0,98880.0,0.08368057]
[1732265423140,0.00151733,98895.0,98894.0,0.050506]
[1732265426236,0.00151733,98895.0,98894.0,0.411306]
[1732265426640,0.1,98900.0,98899.0,0.050503]
[1732265426842,0.00808,98913.0,98912.0,0.050496]
[1732265427538,0.00808,98913.0,98912.0,0.411296]
[1732265427930,0.050492,98921.0,98917.0,0.050493]
[1732265428437,0.050492,98920.0,98917.0,0.050494]
[1732265428638,0.050493,98919.0,98906.0,0.0024]
[1732265428833,0.08368057,98916.0,98914.0,0.050495]
[1732265429039,0.050491,98923.0,98916.0,0.050494]
[1732265429241,0.050491,98923.0,98918.0,0.050493]
[1732265429845,0.3608,98921.0,98918.0,0.050493]
[1732265430044,0.050491,98923.0,98918.0,0.050493]
[1732265430743,0.3608,98921.0,98907.0,0.0024]
[1732265430938,0.08368057,98920.0,98904.0,0.0956]
[1732265431144,0.13417257,98920.0,98904.0,0.0956]
[1732265431448,0.13417257,98920.0,98903.0,0.050501]
[1732265431449,0.13417257,98920.0,98915.0,0.050494]
[1732265431744,0.050492,98920.0,98915.0,0.050494]
[1732265431934,0.050492,98920.0,98916.0,0.050494]
[1732265432136,0.3608,98921.0,98904.0,0.0956]
[1732265432137,0.3608,98921.0,98918.0,0.050493]
[1732265432434,0.3608,98921.0,98904.0,0.0956]
[1732265432639,0.08368057,98920.0,98919.0,0.050493]
[1732265432946,0.00621678,98930.0,98910.0,0.44448057]
[1732265432947,0.411289,98926.0,98921.0,0.050491]
[1732265433336,0.3608,98926.0,98921.0,0.050491]
[1732265433542,0.05049,98925.0,98921.0,0.050491]
[1732265433938,1.55049,98925.0,98921.0,0.050491]
[1732265434341,0.3608,98926.0,98925.0,0.05049]
[1732265439648,0.411289,98926.0,98913.0,0.16]
[1732265439950,0.08368057,98923.0,98917.0,0.050494]
[1732265440148,0.3608,98926.0,98913.0,0.1288]
[1732265440149,0.3608,98926.0,98922.0,0.050491]
[1732265440341,0.3608,98926.0,98913.0,0.1288]
[1732265440647,0.3608,98926.0,98924.0,0.05049]
[1732265441337,0.3608,98926.0,98925.0,0.05049]
[1732265442347,0.3608,98926.0,98913.0,0.1288]
[1732265442542,0.3608,98926.0,98923.0,0.050491]
[1732265443254,0.3608,98926.0,98913.0,0.1288]
[1732265443255,0.3608,98926.0,98924.0,0.05049]
[1732265443845,0.3608,98926.0,98912.0,0.0024]
[1732265444047,0.3608,98926.0,98910.0,0.0047]
[1732265444048,0.050497,98911.0,98910.0,0.00096]
[1732265444352,0.3608,98916.0,98911.0,0.050496]
[1732265444647,0.050494,98916.0,98911.0,0.050496]
[1732265444844,0.3608,98913.0,98911.0,0.050496]
[1732265445044,0.3608,98913.0,98906.0,0.050499]
[1732265445247,0.3608,98913.0,98907.0,0.050499]
[1732265445439,0.08368057,98916.0,98894.0,0.0024]
[1732265445440,0.3608,98908.0,98894.0,0.0024]
[1732265445640,0.3608,98908.0,98893.0,0.0302]
[1732265445641,0.13418057,98906.0,98901.0,0.050502]
[1732265445840,0.3608,98908.0,98893.0,0.0302]
[1732265445841,0.3608,98908.0,98896.0,0.050505]
[1732265446044,0.3608,98908.0,98894.0,0.0956]
[1732265446045,0.08368057,98906.0,98894.0,0.0956]
[1732265446250,0.08368057,98904.0,98893.0,0.080706]
[1732265446445,0.08368057,98904.0,98892.0,0.00151677]
[1732265446751,0.050506,98893.0,98892.0,0.00151677]
[1732265453149,0.151826,98893.0,98892.0,0.00151677]
[1732265453858,0.151826,98893.0,98879.0,0.0024]
[1732265453859,0.05051,98885.0,98879.0,0.0024]
[1732265454150,0.05051,98885.0,98879.0,0.050513]
[1732265454656,0.05051,98885.0,98869.0,0.0347]
[1732265454855,0.08368057,98881.0,98869.0,0.0347]
[1732265455059,0.08368057,98881.0,98880.0,0.050513]
[1732265455351,0.05051,98886.0,98880.0,0.050513]
[1732265455948,0.05051,98885.0,98880.0,0.050513]
[1732265456859,0.05051,98885.0,98870.0,0.08608057]
[1732265456860,0.050512,98883.0,98875.0,0.050515]
[1732265457054,0.08368057,98885.0,98871.0,0.082617]
[1732265457258,0.050513,98880.0,98872.0,0.050517]
[1732265457560,0.050513,98880.0,98873.0,0.050516]
[1732265458050,0.3608,98878.0,98873.0,0.050516]
[1732265458451,0.08368057,98881.0,98876.0,0.050515]
[1732265458752,0.08368057,98881.0,98871.0,0.0321]
[1732265458753,0.08368057,98881.0,98877.0,0.050514]
[1732265459449,0.08368057,98881.0,98871.0,0.0321]
[1732265459645,0.44448057,98887.0,98879.0,0.050513]
[1732265460855,0.050511,98885.0,98879.0,0.050513]
[1732265461046,0.44448057,98887.0,98875.0,0.050515]
[1732265461247,0.44448057,98887.0,98869.0,0.0323]
[1732265461248,0.050513,98879.0,98872.0,0.050517]
[1732265461449,0.3608,98873.0,98869.0,0.0323]
[1732265461649,0.050515,98876.0,98871.0,0.050517]
[1732265462254,0.3608,98874.0,98871.0,0.050517]
[1732265462760,0.050515,98876.0,98871.0,0.050517]
[1732265463559,0.050518,98869.0,98864.0,0.36184]
[1732265463856,0.44448057,98874.0,98864.0,0.3608]
[1732265464060,0.44448057,98874.0,98862.0,0.0347172]
[1732265464061,0.050519,98868.0,98862.0,0.0347172]
[1732265464253,0.44448057,98874.0,98862.0,0.0347172]
[1732265464254,0.3608,98863.0,98862.0,0.0347172]
[1732265465152,0.411321,98863.0,98862.0,0.0347172]
[1732265465552,0.411321,98863.0,98862.0,0.0015172]
[1732265466256,0.3608,98863.0,98862.0,0.0015172]
[1732265467363,0.3608,98863.0,98855.0,0.050525]
[1732265467563,0.3608,98863.0,98859.0,0.050523]
[1732265467760,0.050522,98862.0,98851.0,0.0308]
[1732265468061,0.08368057,98861.0,98856.0,0.050525]
[1732265468264,0.3608,98863.0,98856.0,0.050525]
[1732265468759,0.411321,98863.0,98851.0,0.0308]
[1732265468965,0.08368057,98861.0,98851.0,0.0308]
[1732265469260,0.08368057,98861.0,98857.0,0.050524]
[1732265469452,0.3608,98863.0,98857.0,0.050524]
[1732265469658,0.411322,98863.0,98851.0,0.0308]
[1732265469857,0.08368057,98861.0,98851.0,0.0308]
[1732265470054,0.3608,98863.0,98862.0,0.050522]
[1732265472561,0.3608,98863.0,98856.0,0.050525]
[1732265472758,0.3608,98863.0,98851.0,0.0308]
[1732265472958,0.16736114,98861.0,98851.0,0.0308]
[1732265473279,0.050526,98855.0,98851.0,0.0308]
[1732265476668,0.050523,98860.0,98851.0,0.0308]
[1732265477161,0.050524,98858.0,98851.0,0.0308]
[1732265477571,0.3608,98852.0,98851.0,0.0308]
[1732265477761,0.050524,98858.0,98851.0,0.0308]
[1732265480861,0.16736114,98861.0,98851.0,0.0308]
[1732265481369,0.08368057,98861.0,98855.0,0.050525]
[1732265481573,0.3608,98863.0,98855.0,0.050525]
[1732265481769,0.050523,98861.0,98851.0,0.0308]
[1732265482074,0.13420357,98861.0,98851.0,0.0308]
[1732265483065,0.08368057,98861.0,98851.0,0.0308]
[1732265483464,0.08368057,98861.0,98857.0,0.050524]
[1732265483669,0.3608,98863.0,98857.0,0.050524]
[1732265484074,0.3608,98863.0,98852.0,0.050527]
[1732265484264,0.08368057,98862.0,98852.0,0.050527]
[1732265484460,0.050524,98859.0,98852.0,0.050527]
[1732265485081,0.050524,98859.0,98853.0,0.050526]
[1732265488773,0.050524,98859.0,98854.0,0.050526]
[1732265490069,0.050524,98858.0,98851.0,0.0308]
[1732265490377,0.050524,98858.0,98851.0,0.081327]
[1732265490679,0.050524,98858.0,98852.0,0.050527]
[1732265491269,0.050524,98858.0,98853.0,0.050527]
[1732265491877,0.3608,98863.0,98858.0,0.050524]
[1732265492670,0.3608,98863.0,98851.0,0.0308]
[1732265492980,0.3608,98863.0,98859.0,0.050523]
[1732265493484,0.3608,98863.0,98851.0,0.0308]
[1732265493485,0.3608,98863.0,98854.0,0.050526]
[1732265493782,0.050524,98858.0,98854.0,0.050526]
[1732265494778,0.411321,98863.0,98855.0,0.050525]
[1732265495886,0.050522,98862.0,98855.0,0.050525]
[1732265497077,0.050522,98862.0,98851.0,0.0308]
[1732265497078,0.3608,98863.0,98851.0,0.0308]
[1732265497278,0.3608,98863.0,98856.0,0.050525]
[1732265497570,0.3608,98863.0,98851.0,0.0308]
[1732265497571,0.3608,98863.0,98857.0,0.050525]
[1732265497773,0.3608,98863.0,98862.0,0.050522]
[1732265498379,0.3608,98863.0,98856.0,0.050525]
[1732265498684,0.3608,98863.0,98857.0,0.050524]
[1732265499886,0.3608,98863.0,98858.0,0.050524]
[1732265500179,0.3608,98863.0,98859.0,0.050523]
[1732265500383,0.411322,98863.0,98859.0,0.050523]
[1732265500582,0.3608,98863.0,98859.0,0.050523]
[1732265500778,0.3608,98863.0,98851.0,0.0308]
[1732265501377,0.3608,98863.0,98861.0,0.050522]
[1732265502085,0.411322,98863.0,98861.0,0.050522]
[1732265502288,0.050522,98862.0,98861.0,0.050522]
[1732265502787,0.050522,98862.0,98856.0,0.050525]
[1732265502984,0.050524,98858.0,98856.0,0.050525]
[1732265503489,0.3608,98863.0,98851.0,0.0308]
[1732265503678,0.411322,98863.0,98857.0,0.050524]
[1732265504681,0.411322,98863.0,98858.0,0.050524]
[1732265505089,0.411322,98863.0,98859.0,0.050523]
[1732265505789,0.3608,98863.0,98862.0,0.050522]
[1732265509682,0.36218775,98863.0,98862.0,0.050522]
[1732265510380,0.00138775,98863.0,98862.0,0.050522]
[1732265518489,0.0047,98873.0,98862.0,0.60344]
[1732265518693,0.0047,98883.0,98882.0,0.050512]
[1732265518889,0.050507,98891.0,98883.0,0.050511]
[1732265519093,0.0047,98898.0,98882.0,0.3608]
[1732265519094,0.050509,98887.0,98882.0,0.3608]
[1732265519297,0.050509,98887.0,98885.0,0.05051]
[1732265519488,0.050509,98887.0,98886.0,0.05051]
[1732265519684,0.0047,98898.0,98882.0,0.3608]
[1732265520000,0.050507,98891.0,98888.0,0.050509]
[1732265520798,0.050508,98889.0,98884.0,0.05051]
[1732265521095,0.050509,98888.0,98884.0,0.05051]
[1732265521495,0.44448057,98894.0,98884.0,0.05051]
[1732265521684,0.3608,98886.0,98877.0,0.0024]
[1732265521888,0.3608,98886.0,98870.0,0.08368057]
[1732265522298,0.3608,98886.0,98884.0,0.05051]
[1732265523088,0.3608,98886.0,98872.0,0.3608]
[1732265523302,0.050512,98883.0,98871.0,0.050517]
[1732265523500,0.050514,98878.0,98871.0,0.050517]
[1732265523792,0.3608,98872.0,98867.0,0.050519]
[1732265524498,0.3608,98872.0,98868.0,0.050519]
[1732265524691,0.050516,98875.0,98868.0,0.050518]
[1732265524891,0.050516,98875.0,98869.0,0.050518]
[1732265525095,0.3608,98876.0,98865.0,0.08368057]
[1732265525399,0.3608,98876.0,98875.0,0.050515]
[1732265525598,0.3608,98886.0,98883.0,0.050511]
[1732265525814,0.3608,98886.0,98884.0,0.01101804]
[1732265526003,0.3608,98886.0,98884.0,0.06152904]
[1732265526294,0.3608,98886.0,98885.0,0.01101804]
[1732265526796,0.3608,98886.0,98884.0,0.050511]
[1732265527992,0.3608,98886.0,98885.0,0.01101804]
[1732265529092,0.3608,98886.0,98881.0,0.050512]
[1732265530095,0.3608,98886.0,98876.0,0.032]
[1732265530302,0.3608,98886.0,98885.0,0.05051]
[1732265531294,0.46644,98894.0,98879.0,0.3608]
[1732265531601,0.411306,98894.0,98889.0,0.050508]
[1732265531903,0.050506,98893.0,98889.0,0.050508]
[1732265532603,0.3608,98894.0,98880.0,0.12745841]
[1732265532800,0.3608,98894.0,98893.0,0.050506]
[1732265533794,0.00151715,98900.0,98899.0,0.050503]
[1732265537404,0.050497,98911.0,98910.0,0.050496]
[1732265538095,0.050494,98918.0,98917.0,0.050493]
[1732265539408,0.050492,98920.0,98917.0,0.050493]
[1732265540202,0.3608,98923.0,98918.0,0.050493]
[1732265540606,0.3608,98923.0,98921.0,0.050492]
[1732265540818,0.3608,98923.0,98910.0,0.12745841]
[1732265541014,0.3608,98923.0,98921.0,0.050491]
[1732265541209,0.3608,98923.0,98922.0,0.050491]
[1732265543408,0.3608,98923.0,98917.0,0.050493]
[1732265543617,0.3608,98923.0,98911.0,0.0303]
[1732265543807,0.3608,98923.0,98919.0,0.050493]
[1732265544003,0.3608,98923.0,98911.0,0.0303]
[1732265544209,0.3608,98923.0,98921.0,0.050492]
[1732265544915,0.3608,98923.0,98916.0,0.050494]
[1732265545108,0.050492,98922.0,98918.0,0.050493]
[1732265545418,0.050492,98922.0,98919.0,0.050493]
[1732265545922,0.3608,98923.0,98920.0,0.050492]
[1732265546611,0.3608,98923.0,98911.0,0.0303]
[1732265546917,0.3608,98923.0,98921.0,0.050492]
[1732265547212,0.3608,98923.0,98922.0,0.050491]
[1732265549317,0.3608,98923.0,98922.0,0.051491]
[1732265550220,0.3608,98923.0,98922.0,0.001]
[1732265550517,0.411291,98923.0,98922.0,0.001]
[1732265551520,0.411291,98923.0,98907.0,0.0024]
[1732265551725,0.3608,98909.0,98906.0,0.050499]
[1732265552122,0.3608,98909.0,98902.0,0.050501]
[1732265552418,0.3608,98909.0,98899.0,0.1056]
[1732265552623,0.0505,98906.0,98902.0,0.050501]
[1732265553216,0.3608,98907.0,98899.0,0.001]
[1732265553417,0.3608,98907.0,98903.0,0.050501]
[1732265553626,0.0505,98904.0,98899.0,0.051503]
[1732265553817,0.3608,98907.0,98899.0,0.001]
[1732265554124,0.0628,98911.0,98906.0,0.050499]
[1732265554626,0.050498,98909.0,98906.0,0.050499]
[1732265555110,0.3608,98907.0,98906.0,0.050499]
[1732265555918,0.3608,98907.0,98901.0,0.050502]
[1732265556124,0.3608,98907.0,98899.0,0.002]
[1732265556424,0.3608,98907.0,98906.0,0.001]
[1732265556618,0.411299,98907.0,98906.0,0.001]
[1732265557025,0.411299,98907.0,98902.0,0.050501]
[1732265557424,0.411299,98907.0,98901.0,0.001]
[1732265557425,0.3608,98907.0,98901.0,0.001]
[1732265557632,0.3608,98907.0,98904.0,0.0505]
[1732265558636,0.3608,98907.0,98906.0,0.001]
[1732265560134,0.3608,98907.0,98904.0,0.0515]
[1732265561133,0.050499,98908.0,98904.0,0.0515]
[1732265561526,0.050499,98908.0,98904.0,0.0505]
[1732265561828,0.050499,98908.0,98906.0,0.001]
[1732265562029,0.0628,98911.0,98907.0,0.01088378]
[1732265562231,0.050497,98910.0,98907.0,0.06138278]
[1732265562435,0.050497,98910.0,98908.0,0.01088378]
[1732265562734,0.050497,98910.0,98909.0,0.01088378]
[1732265563032,0.3608,98911.0,98904.0,0.001]
[1732265563033,0.3608,98911.0,98905.0,0.01088378]
[1732265563232,0.050499,98907.0,98906.0,0.01088378]
[1732265564235,0.050498,98910.0,98906.0,0.01088378]
[1732265564421,0.050499,98907.0,98904.0,0.0505]
[1732265564625,0.050499,98907.0,98905.0,0.01106974]
[1732265564918,0.050499,98907.0,98906.0,0.01106974]
[1732265565522,0.3608,98908.0,98906.0,0.01106974]
[1732265565732,0.411298,98908.0,98907.0,0.01106974]
[1732265565936,0.050499,98906.0,98905.0,0.01106974]
[1732265567935,0.050499,98906.0,98905.0,0.01206974]
[1732265570530,0.3608,98911.0,98905.0,0.01206974]
[1732265570731,0.3608,98911.0,98909.0,0.050498]
[1732265570932,0.3608,98911.0,98905.0,0.001]
[1732265571343,0.3608,98911.0,98908.0,0.050498]
[1732265572437,0.3608,98911.0,98909.0,0.050498]
[1732265575042,0.3608,98911.0,98909.0,0.051498]
[1732265577331,0.050497,98910.0,98909.0,0.001]
[1732265580141,0.3608,98911.0,98900.0,0.01106974]
[1732265580344,0.3608,98911.0,98899.0,0.051503]
[1732265580345,0.050498,98909.0,98899.0,0.051503]
[1732265580548,0.08360664,98910.0,98899.0,0.051503]
[1732265580549,0.050501,98904.0,98900.0,0.01114635]
[1732265580750,0.050501,98904.0,98901.0,0.01114635]
[1732265580951,0.050501,98904.0,98902.0,0.01114635]
[1732265581143,0.050501,98904.0,98903.0,0.01114635]
[1732265584155,0.050501,98904.0,98903.0,0.01214635]
[1732265585860,0.3608,98908.0,98903.0,0.01214635]
[1732265586050,0.3608,98908.0,98904.0,0.01114635]
[1732265586352,0.3608,98908.0,98905.0,0.01114635]
[1732265586543,0.050499,98907.0,98906.0,0.01114635]
[1732265588344,0.050499,98907.0,98906.0,0.01214635]
[1732265589945,0.050499,98907.0,98906.0,0.01114635]
[1732265590141,0.050499,98907.0,98906.0,0.01214635]
[1732265590760,0.050499,98907.0,98906.0,0.001]
[1732265599462,0.3608,98908.0,98899.0,0.001]
[1732265599660,0.3608,98900.0,98899.0,0.001]
[1732265600161,0.3608,98908.0,98899.0,0.001]
[1732265600363,0.3608,98900.0,98899.0,0.001]
[1732265600967,0.3608,98900.0,98899.0,0.002]
[1732265602858,0.3608,98900.0,98899.0,0.01315225]
[1732265603468,0.3608,98900.0,98899.0,0.06265525]
[1732265603766,0.3608,98900.0,98899.0,0.06365525]
[1732265604467,0.3608,98908.0,98907.0,0.050498]
[1732265604666,0.3608,98908.0,98907.0,0.06165025]
[1732265605768,0.411293,98919.0,98918.0,0.050493]
[1732265605955,0.3608,98919.0,98918.0,0.050493]
[1732265606553,0.3608,98919.0,98918.0,0.06164525]
[1732265606966,0.3608,98919.0,98918.0,0.06264525]
[1732265608469,0.08360664,98930.0,98918.0,0.01215225]
[1732265608665,0.08360664,98930.0,98923.0,0.050491]
[1732265608666,0.05049,98924.0,98923.0,0.050491]
[1732265609363,0.08360664,98930.0,98923.0,0.050491]
[1732265609761,0.050489,98927.0,98923.0,0.050491]
[1732265610267,0.050489,98927.0,98923.0,0.051491]
[1732265611359,0.08360664,98930.0,98923.0,0.051491]
[1732265611960,0.08360664,98930.0,98923.0,0.001]
[1732265611961,0.050489,98926.0,98923.0,0.001]
[1732265613268,0.050489,98926.0,98920.0,0.050492]
[1732265613567,0.050489,98926.0,98923.0,0.001]
[1732265613767,0.3608,98927.0,98911.0,0.0024]
[1732265613972,0.3608,98912.0,98906.0,0.0024]
[1732265614164,0.3608,98912.0,98903.0,0.0116165]
[1732265614165,0.0505,98905.0,98903.0,0.0015165]
[1732265615162,0.0322,98911.0,98903.0,0.0015165]
[1732265615163,0.050498,98909.0,98903.0,0.0015165]
[1732265615472,0.3608,98905.0,98903.0,0.0015165]
[1732265617063,0.4113,98905.0,98903.0,0.0015165]
[1732265619863,0.0505,98904.0,98903.0,0.0015165]
[1732265621066,0.3608,98905.0,98903.0,0.0015165]
[1732265621272,0.3608,98905.0,98904.0,0.0505]
[1732265623574,0.3608,98905.0,98903.0,0.0015165]
[1732265623575,0.0505,98904.0,98903.0,0.0015165]
[1732265623966,0.0505,98904.0,98903.0,0.01202484]
[1732265624677,0.0505,98904.0,98900.0,0.050503]
[1732265626771,0.0505,98904.0,98902.0,0.050501]
[1732265628275,0.0505,98904.0,98903.0,0.01202484]
[1732265629372,0.3608,98905.0,98904.0,0.0505]
[1732265629676,0.30400714,98905.0,98904.0,0.06252484]
[1732265631776,0.35450714,98905.0,98904.0,0.01202484]
[1732265631976,0.050503,98900.0,98899.0,0.001]
[1732265641788,0.10524,98903.0,98899.0,0.001]
[1732265641988,0.155741,98903.0,98900.0,0.01209822]
[1732265642306,0.53004,98904.0,98901.0,0.01209822]
[1732265642590,0.3608,98904.0,98903.0,0.050501]
[1732265642799,0.3608,98904.0,98903.0,0.06259922]
[1732265644591,0.0304,98915.0,98903.0,0.06259922]
[1732265644592,0.0047,98919.0,98918.0,0.050493]
[1732265644791,0.00151707,98920.0,98918.0,0.06259122]
[1732265644999,0.00151707,98920.0,98919.0,0.01209822]
[1732265645592,0.00151707,98920.0,98919.0,0.04499822]
[1732265648689,0.00151707,98920.0,98919.0,0.01209822]
[1732265648988,0.00151707,98920.0,98904.0,0.0047]
[1732265648989,0.050497,98912.0,98904.0,0.0047]
[1732265649187,0.36569707,98920.0,98888.0,0.0609]
[1732265649188,0.3608,98906.0,98901.0,0.050502]
[1732265649903,0.3608,98906.0,98902.0,0.050501]
[1732265651197,0.3608,98906.0,98899.0,0.001]
[1732265651701,0.3608,98906.0,98900.0,0.050502]
[1732265652589,0.3608,98906.0,98901.0,0.050502]
[1732265652794,0.3608,98906.0,98899.0,0.001]
[1732265652996,0.30400611,98906.0,98904.0,0.0505]
[1732265653797,0.30400611,98906.0,98899.0,0.001]
[1732265653995,0.30400611,98906.0,98905.0,0.0505]
[1732265654193,0.050493,98918.0,98907.0,0.050499]